Cogmind - Beta 16.1 @@@ ROGUE MODE // 2026.04.14 @ 14:06:45 Player: Dosh Result: Destroyed by YE-M7S(R) with Subdweller Laser Performance ------------- Evolutions (0) 0 Regions Visited (2) 400 Robots Destroyed (39) 195 Value Destroyed (930) 930 Prototype IDs (3) 60 Alien Tech Used (0) 0 Bonus (0) 0 TOTAL SCORE: 1585 Bonus ------- None Cogmind --------- Core Integrity 0/250 Matter 264/300 Energy 100/100 System Corruption 0% Temperature Cool (6) Movement Rolling (155) Ox5 Location -10/Subcaves Parts ------- > --- POWER (1) -------- Subdweller Power Source > --- PROPULSION (2) --- Light Treads Wheel > --- UTILITY (2) ------ High-capacity Storage Unit Makeshift Light Armor Plating > --- WEAPON (2) ------- Battle Rifle Subdweller Machine Gun > --- INVENTORY (20) --- Ion Engine Light Ion Engine Subdweller Power Source Light Treads Light Treads Spiked Treads Small Storage Unit Beam Cannon Beam Cannon Assault Rifle Assault Rifle Light Assault Rifle Light Assault Rifle Light Assault Rifle Subdweller Machine Gun Grenade Launcher Subdweller Shrapnel Launcher Peak State ------------ > --- POWER ------------ Subdweller Power Source > --- PROPULSION ------- Light Treads Spiked Treads > --- UTILITY ---------- High-capacity Storage Unit Makeshift Light Armor Plating > --- WEAPON ----------- Subdweller Machine Gun Subdweller Machine Gun > --- INVENTORY -------- Ion Engine Light Ion Engine Subdweller Power Source Light Treads Light Treads Light Treads Wheel Small Storage Unit Beam Cannon Beam Cannon Assault Rifle Assault Rifle Light Assault Rifle Light Assault Rifle Light Assault Rifle Battle Rifle Subdweller Machine Gun Subdweller Machine Gun Grenade Launcher Subdweller Shrapnel Launcher [Rating: 16] Favorites ----------- Power Subdweller Power Source Engine Subdweller Power Source Propulsion Light Treads Treads Light Treads Wheel Wheel Utility High-capacity Storage Unit Device Subdweller Optics Storage High-capacity Storage Unit Protection Makeshift Light Armor Plating Weapon Subdweller Machine Gun Energy Cannon Beam Cannon Ballistic Gun Subdweller Machine Gun Build | -11 -10 -10 ------- Run | Yrd Mat Sub Slots Evolved . | . . . Power . | . . . Propulsion . | . . . Utility . | . . . Weapon . | . . . Parts Attached 25 | 6 7 12 Power 4 | 1 1 2 Engine 4 | 1 1 2 Core . | . . . Reactor . | . . . Propulsion 5 | 2 . 3 Treads 4 | 2 . 2 Leg . | . . . Wheel 1 | . . 1 Hover . | . . . Flight . | . . . Utility 5 | 1 2 2 Device 1 | . . 1 Storage 2 | 1 1 . Processor . | . . . Hackware . | . . . Protection 2 | . 1 1 Artifact . | . . . Weapon 11 | 2 4 5 Energy Gun . | . . . Energy Cannon 2 | . 2 . Ballistic Gun 9 | 2 2 5 Ballistic Cannon . | . . . Launcher . | . . . Special Weapon . | . . . Impact Weapon . | . . . Slashing Weapon . | . . . Piercing Weapon . | . . . Special Melee Weapon . | . . . Unidentified Prototypes . | . . . Parts Lost 4 | . . 4 Power . | . . . Propulsion 1 | . . 1 Utility 1 | . . 1 Weapon 2 | . . 2 Highest Loss Streak 2 | . . 2 To Critical Strikes . | . . . Average Backups 13 | . 6 18 Power 1 | . . 2 Propulsion 2 | . 1 3 Utility . | . . 1 Weapon 8 | . 3 10 Tool/Special . | . . . Unused Backups 7 | . . 7 Power . | . . . Propulsion 2 | . . 2 Utility . | . . . Weapon 5 | . . 5 Tool/Special . | . . . Average Slot Usage (%) 95 | . 92 97 Engine 14 | . 14 14 Treads 27 | . 27 27 Device 2 | . . 4 Storage 14 | . 14 14 Protection 7 | . 7 7 Energy Cannon 1 | . . 2 Ballistic Gun 26 | . 28 25 Peak Build Rating 16 | 6 8 16 Average Rating 11 | 4 6 13 On Entrance 4 | . 6 8 Avg Prop Armor Cover (%) 10 | . . 10 Naked Turns . | . . . Heaviest Build 57 | 14 52 57 Greatest Support 40 | 40 40 40 Greatest Overweight (x) 5 | . 1 5 Average Overweight (x) . | . . 1 Largest Inventory Capacity 20 | 8 20 20 Average Capacity 17 | 6 12 20 Most Carried 20 | 1 11 20 Average Carried 13 | . 6 18 Final Capacity 20 | 8 20 20 Final Carried 17 | 1 11 17 Class Distribution -------------------- 100% | Mutant Dominant Class ---------------- Mutant | -10/Materials Mutant | -10/Subcaves Resources | -11 -10 -10 ----------- Run | Yrd Mat Sub Matter Collected 985 | 215 485 285 Remotely . | . . . Salvage Created 1309 | . 762 547 Parts 82 | . 53 29 Haulers Intercepted 2 | . 2 . Recyclers Shooed 2 | . 2 . Parts Field Recycled . | . . . Retrieved Matter . | . . . Parts Self-Destructed 6 | . . 6 Prevented . | . . . Parts Restored . | . . . Kills | -11 -10 -10 ------- Run | Yrd Mat Sub Combat Hostiles Destroyed 32 | . 20 12 Guns 26 | . 20 6 Cannons 6 | . . 6 Classes Destroyed 7 | . 6 1 Worker 2 | . 2 . Hauler 2 | . 2 . Recycler 1 | . 1 . Watcher 2 | . 2 . Swarmer 12 | . 12 . Grunt 10 | . 8 2 Subdweller 10 | . . 10 Best Kill Streak 6 | . 6 4 Combat Bots Only 6 | . 6 4 Max Kills in Single Turn 1 | . 1 1 Gunslinging . | . . . Exploded . | . . . Melee . | . . . Uniques/NPCs Destroyed . | . . . Combat | -11 -10 -10 -------- Run | Yrd Mat Sub Hostile Shots Fired 130 | . 83 47 Missed 38 | . 26 12 Hits 92 | . 57 35 Projectile 92 | . 57 35 AOE 10 | . . 10 Critical Strikes 3 | . 2 1 Damage Taken 1784 | . 569 1215 Core 258 | . 77 181 Absorbed by Shields . | . . . Regen/Repaired (Parts) 206 | . 206 . Core Remaining (%) 100 | 100 . . Volleys Fired 124 | . 62 62 Largest 2 | . 2 2 Hottest 120 | . 40 120 Shots Fired 246 | . 124 122 Gun 214 | . 124 90 Cannon 32 | . . 32 Launcher . | . . . Special . | . . . Kinetic 214 | . 124 90 Thermal 32 | . . 32 Explosive . | . . . Electromagnetic . | . . . Robot Hit Streak 16 | . 16 15 Robot Miss Streak 6 | . 6 4 Penetration Max . | . . . Secondary Targets 2 | . 2 . Max Gunslinging Chain 1 | . 1 . Shots Hit Robots 144 | . 73 71 Core Hits 63 | . 38 25 Critical Kills 1 | . 1 . Critical Parts Destroyed . | . . . Critical Strikes 2 | . 1 1 Destroy 2 | . 1 1 Melee Attacks . | . . . Impact . | . . . Slashing . | . . . Piercing . | . . . Sneak Attacks . | . . . Combat Hostiles . | . . . Follow-up Attacks . | . . . Damage Inflicted 2338 | . 973 1365 Guns 1944 | . 949 995 Cannons 370 | . . 370 Explosions . | . . . Melee . | . . . Ramming 24 | . 24 . Kinetic 1944 | . 949 995 Thermal 370 | . . 370 Explosive . | . . . Electromagnetic . | . . . Impact . | . . . Slashing . | . . . Piercing . | . . . Highest Corruption . | . . . Average Corruption . | . . . Corruption Purged . | . . . Corruption Blocked . | . . . Overload Shots . | . . . Overflow Damage . | . . . Projectiles . | . . . Explosions . | . . . Melee . | . . . Knockbacks 1 | . 1 . Impact 1 | . 1 . Kinetic . | . . . Secondary . | . . . Self-Inflicted Damage . | . . . Shots . | . . . Rammed 8 | . 8 . Targets Rammed 8 | . 8 . Kicked . | . . . Crushed . | . . . Highest Temperature 45 | . 2 45 Average Temperature 10 | . 2 12 Received Heat Transfer 267 | . 153 114 Siege Activations . | . . . Martial Activations . | . . . Shielding Activations . | . . . Robots Disrupted . | . . . Combat Hostiles . | . . . Robots Corrupted . | . . . Combat Hostiles . | . . . Parts Fried . | . . . Impact Corruptions . | . . . Robots Melted . | . . . Combat Hostiles . | . . . Parts Melted 2 | . . 2 Heat Transferred 777 | . . 777 Parts Sabotaged . | . . . Parts Stolen . | . . . Parts Stripped . | . . . Power Chain Reactions . | . . . Alert | -11 -10 -10 ------- Run | Yrd Mat Sub Maximum Alert Level . | . . . Low Security (%) 100 | 100 100 . Level 1 . | . . . Level 2 . | . . . Level 3 . | . . . Level 4 . | . . . Level 5 . | . . . High Security . | . . . Max Security . | . . . Peak Influence 167 | . 167 . Initial . | . . . Average 89 | . 92 . Influence Increases 732 | . 682 50 Destroy 0b10 Robot/C 440 | . 400 40 Destroy 0b10 Robot/NC 35 | . 35 . Destroy Leader 88 | . 78 10 Successful Hack 31 | . 31 . Select Force Hacks 60 | . 60 . Destroy Structure 3 | . 3 . Lose Combat Pursuer 75 | . 75 . Influence Decreases 732 | . 563 169 Entered New Map 58 | . . 58 Time Decay 664 | . 563 101 Lost Part 10 | . . 10 Squads Dispatched 3 | . 3 . Investigation 3 | . 3 . Extermination . | . . . Reinforcement . | . . . Assault . | . . . Garrison . | . . . Intercept . | . . . Searches Triggered . | . . . Construction Impeded . | . . . Haulers Reinforced . | . . . Active Scanning Responses . | . . . Cargo Convoy Interrupts . | . . . Stealth | -11 -10 -10 --------- Run | Yrd Mat Sub Distress Signals 3 | . 3 . Communications Jammed . | . . . Distress Signals . | . . . Times Spotted 53 | . 39 14 Peak Tracking Total 6 | . 6 2 Tactical Retreats 3 | . 3 . Traps | -11 -10 -10 ------- Run | Yrd Mat Sub Traps Triggered 3 | . 1 2 Indirectly . | . . . Trap Hack Attempts . | . . . Triggered . | . . . Disarmed . | . . . Reprogrammed . | . . . Reused . | . . . Traps Extracted . | . . . Installed . | . . . Triggered . | . . . Machines | -11 -10 -10 ---------- Run | Yrd Mat Sub Machines Disabled . | . . . Max in Single Turn . | . . . Machines Repaired . | . . . Machines Dismantled . | . . . Machines Sabotaged . | . . . Overloaded Fab Kills . | . . . Hacking | -11 -10 -10 --------- Run | Yrd Mat Sub Machines Accessed 10 | . 8 2 Terminals 5 | . 5 . Fabricators . | . . . Repair Stations 1 | . 1 . Recycling Units 2 | . 2 . Scanalyzers . | . . . Garrison Access . | . . . Total Hacks 25 | . 23 2 Successful 17 | . 15 2 Failed 8 | . 8 . Catastrophic 1 | . 1 . Database Lockouts . | . . . Manual 12 | . 12 . Terminals 16 | . 16 . Fabricators . | . . . Repair Stations 5 | . 5 . Recycling Units 2 | . 2 . Scanalyzers . | . . . Garrison Access . | . . . Terminal Hacks 11 | . 9 2 Record 1 | . . 1 Robot Schematic 1 | . 1 . Robot Analysis 2 | . 2 . Prototype ID Bank 2 | . 2 . Open Door 1 | . . 1 Locate Traps 1 | . 1 . Dispatch Records 1 | . 1 . Security Status 1 | . 1 . Zone Layout 1 | . 1 . Fabricator Hacks . | . . . Repair Station Hacks 4 | . 4 . Scan Component 2 | . 2 . Repair 2 | . 2 . Recycling Unit Hacks . | . . . Scanalyzer . | . . . Garrison Access Hacks . | . . . Unauthorized Hacks 2 | . 2 . Terminals . | . . . Fabricators . | . . . Repair Stations . | . . . Recycling Units 2 | . 2 . Tunnel 2 | . 2 . Scanalyzers . | . . . Garrison Access . | . . . Data Cores Recovered . | . . . Used . | . . . Hacking Detections 6 | . 6 . Full Trace Events 1 | . 1 . Feedback Events . | . . . Feedback Blocked . | . . . Robot Schematics Acquired 1 | . 1 . Robots Built . | . . . Authchips . | . . . Time . | . . . Total Robot Build Rating . | . . . Part Schematics Acquired . | . . . Parts Built . | . . . Authchips . | . . . Time . | . . . Total Part Build Rating . | . . . Part Studies Acquired . | . . . Parts Repaired 2 | . 2 . Time 52 | . 52 . Parts Recycled . | . . . Recycled Matter . | . . . Retrieved Matter . | . . . Retrieved Components . | . . . Parts Scanalyzed . | . . . Part Schematics Acquired . | . . . Parts Damaged . | . . . Bothacking | -11 -10 -10 ------------ Run | Yrd Mat Sub Used RIF Installer . | . . . Robots Hacked . | . . . Non-combat . | . . . Combat . | . . . Robot Hacks Applied . | . . . Relay Couplers Released . | . . . Fabnet Peak Effective % . | . . . Robots Rewired . | . . . Allies Hacked . | . . . Hacks Repelled . | . . . Allies | -11 -10 -10 -------- Run | Yrd Mat Sub Total Allies . | . . . Largest Group . | . . . Highest-Rated Group . | . . . Highest-Rated Ally . | . . . Total Orders . | . . . Ally Attacks . | . . . Total Damage . | . . . Kills . | . . . Allies Corrupted . | . . . Allies Melted . | . . . Intel | -11 -10 -10 ------- Run | Yrd Mat Sub Active Infowar (turns) 326 | . . 326 Optics 326 | . . 326 Robot Analysis Total 2 | . 2 . Derelict Logs Recovered 2 | . . 2 Drone Launches . | . . . Drone Recoveries . | . . . Exploration | -11 -10 -10 ------------- Run | Yrd Mat Sub Turns Passed 5424 | 71 1902 3451 Spaces Moved 2161 | 40 796 1325 Core 2 | 2 . . Treads 2154 | 38 796 1320 Legs . | . . . Wheels 5 | . . 5 Hover . | . . . Flight . | . . . Fastest Speed 50 | 50 160 155 Average Speed 221 | 154 189 243 Slowest Speed 250 | 160 240 250 Overloaded Moves . | . . . Propulsion Burnouts . | . . . Robots Hopped . | . . . Potential Cave-ins . | . . . Cave-ins Triggered . | . . . Exploration Rate (%) 54 | 3 97 64 Regions Visited 2 Branch Regions 1 Pre-discovered Areas 2 | . 2 . Known Exits Taken . | . . . Unknown Exits Taken 2 | 1 1 . Scrap Searched 4 | . . 4 Spaces Dug . | . . . Terrain Destroyed . | . . . Melee . | . . . Projectile . | . . . AOE . | . . . Terrain Rammed . | . . . Walls Destroyed . | . . . Machines Disabled . | . . . Actions | -11 -10 -10 --------- Run | Yrd Mat Sub Total 2533 | 46 1059 1428 Wait 190 | . 169 21 Move 2159 | 39 795 1325 Hop . | . . . Pick Up 18 | 1 11 6 Fast Attach 11 | 6 4 1 Attach 3 | . . 3 Detach . | . . . Swap 15 | . 6 9 Drop 5 | . 4 1 Fire 124 | . 62 62 Melee . | . . . Ram . | . . . Kick . | . . . Crush 8 | . 8 . Escape Stasis . | . . . Rewire . | . . . Trap . | . . . Miscellaneous . | . . . Route ------- -11/Scrapyard -10/Materials (discovered 5 exits: [*Mat x3] / [*Min] / *Sub) -10/Subcaves (discovered 3 exits: [*Mat x2] / Rec) History --------- Turn | Location | Event 40 | -11/Scrapyard | Discovered new exit (range 16) 72 | -11/Scrapyard | Entered Materials 277 | -10/Materials | Discovered new exit (range 11) 301 | -10/Materials | Build established: Mutant 688 | -10/Materials | Repaired Lgt. Treads 715 | -10/Materials | Repaired Lgt. Treads 950 | -10/Materials | Discovered new exit (range 3) 1360 | -10/Materials | Discovered new exit (range 15) 1662 | -10/Materials | Discovered new exit (range 8) 1952 | -10/Materials | Discovered new exit (range 8) 1974 | -10/Materials | Entered Subcaves 1975 | -10/Subcaves | Approached by a straggling Scientist 1977 | -10/Subcaves | Learned Materials emergency access door positions 2277 | -10/Subcaves | Core integrity fell below 50% 2388 | -10/Subcaves | A swath of the cavern ceiling suddenly collapsed 2807 | -10/Subcaves | Identified exit to Recycling 3021 | -10/Subcaves | Discovered new exit (range 2) 3054 | -10/Subcaves | Shifting Twisted Machinery released Battle Rifle 3064 | -10/Subcaves | Shifting Twisted Machinery released Sub. Machine Gun 3988 | -10/Subcaves | Discovered new exit (range 9) 3994 | -10/Subcaves | Shifting Twisted Machinery released Sub. Laser 4096 | -10/Subcaves | Shifting Twisted Machinery released Spk. Treads 4318 | -10/Subcaves | Shifting Twisted Machinery released Flamer 4319 | -10/Subcaves | Shifting Twisted Machinery released Scrap Shield 4707 | -10/Subcaves | Core integrity fell below 20% 5425 | -10/Subcaves | Destroyed by YE-M7S(R) with Subdweller Laser Last Messages --------------- 04636_ Lgt. Treads destroyed. 04646_ Sub. Machine Gun shoots sparks and powers down. 04652_ Destroyed Scrap Shield. 04654_ Sub. Machine Gun destroyed. 04659_ Q0-DFB(R) destroyed. 04706_ Triggered Shrapnel Trap. 04706_ An expanding cloud of shrapnel blasts out in all directions. 04706_ Sub. Machine Gun destroyed. 04743_ ZE-KGB(R) destroyed. 04745_ Subatomizers dissect the Sub. Power Source. 04752_ RP-T49(R) destroyed. 04756_ Subatomizers dissect the Sub. Shrapnel Launcher. 04762_ Acquired 43 matter. 04778_ Subatomizers dissect the Sub. Shrapnel Launcher. 04807_ Acquired 9 matter. 04914_ Triggered Shrapnel Trap. 04914_ An expanding cloud of shrapnel blasts out in all directions. 05002_ Acquired 10 matter. 05244_ Acquired 3 matter. 05329_ Acquired 8 matter. Map ----- +----------------------------------------------------+ | ???????????????????????## ???????????????????????# | | ????????????????????????????????????????????????# | | ?????????????????????????????????????????????????? | | ?????????????????????????????????????????????????? | | ?????????????????????????????????????????????????? | | ?????????????????????????????????????????????????? | | ?????????????????????????????????????????????????? | | ?????????????????????????????????????????????????? | | ?????????????????????????????????????????????????? | | ?????????????????????????????????????????????????? | | ?????????????????????????????????????????????????? | | ?????????????????????????????????????????????????? | | ?????????????????????????????????????????????????? | | ?????????????????????????????????????????????????? | | ?????????????????????????????????????????????????? | | ?????????????????????????????????????????????????? | | ?????????????????????????????????????????????????? | | ?????????????????????##??????????????????????????? | | ?????????????######## #??????????????????????????? | | ??? ## ##??????????????????????????? | | ???????""" ###????????????????????????? | | ???# ""#R ####?????##??????????####? | | ??????# #### ??## # ###### #????????### ## | | ????????????#????#" #??????### # | | ?????????????? """#### #??????# | | ?????????????### ???## @ # #??????# | | ???????????????##?????##### ## #?????## | | ?????????????????????????# # ## ### # | | ?????????????????????????# #??# # | | ?????????????????????????#### ##?# | | ???????????????????????????## #?# ## | | ????????????????????????#### ### ??# | | ???????????????????????## # #?# ????## | | ???????????????????????# # #??####???????# | | ???????????????????????# # ##????????????# | | ???????????????????????# #???###??????##### | | ???????????????????????# ##?# ### ## ### | | ???????????????????????# ## #?# | | ???????????????????????# #?# ## | | ??????????????????????## ###?# ??## | | ??????????????????????# ###?#?????# | | ??????????????????????## ##??????## | | ???????????????????????###" ##??##### | | ?????????????????????????##" #### | | ???????????????????????#??#" ## | | ???????????????????????# ##" | | ??????????????????????## "# | | ??????????????????????# "#### | | ??????????????????????# ### ##??##### # | | ??????????????????????## ??## #?####### # | +----------------------------------------------------+ Best States ------------- Heat Dissipation 25 Energy Generation 15 Energy Capacity 250 Matter Stores 300 Matter Capacity 300 Sight Range 21 Terrain Scan Density 10 Armor Coverage 150 Evasion (%) 40 Recoil Reduction 2 Item Schematics ----------------- None Robot Schematics ------------------ M-13 Machinist | -10/Materials | Hacked Fabricated ------------ Nothing Repaired ---------- Lgt. Treads | 24% | -10/Materials Lgt. Treads | 28% | -10/Materials Studied --------- None Alien Tech Used ----------------- None Achievements -------------- None Challenges ------------ None Game ------ Seed TeleporterNodeAutohacker Manual? 0 Play Time 00:18:07 Cumulative 849.2 hours Start 2026.04.13 @ 14:17:15 End 2026.04.14 @ 14:06:45 Sessions 2 Manual Loads 0 Difficulty Rogue Special Mode None Game No. 423 Rogue 423 Adventurer 0 Explorer 0 Win Type - Total 73 Types 47/5/7/4/1/1/3/3/1/1 Lore% 92 Gallery% 83 Achievement% 73 Wizard Run 0 Options --------- Layout 0 ASCII 0 Keyboard 1 Movement Numpad Keybinds 0 Fullscreen 2 Font 18/SmallcapsGlow Map View 76x50 Zoom Use 0% Tactical HUD 1 Map Filters NONE Filters NONE Steam 1 RUN: d329e31a-e17c-4c30-9b71-33965ad52bbe